Cogmind - Beta 14 @@@ ROGUE MODE // 2024.08.10 @ 23:14:51 Player: Sionnis Result: Destroyed by 7V-RTL with Dispersion Rifle Performance ------------- Evolutions (4) 2000 Regions Visited (7) 1400 Robots Destroyed (26) 130 Value Destroyed (632) 632 Prototype IDs (22) 440 Alien Tech Used (0) 0 Bonus (684) 684 TOTAL SCORE: 5286 Bonus ------- Follower Combat Kills 486 Registered with UFD 300 Friendly Fire -102 Cogmind --------- Core Integrity 0/850 Matter 300/300 Energy 52/100 System Corruption 0% Temperature Cool (9) Movement Core (250) Ox4 Location -6/Zion Parts ------- > --- POWER (1) -------- (None) > --- PROPULSION (5) --- (None) > --- UTILITY (7) ------ Medium Storage Unit Visual Processing Unit Improved Signal Interpreter > --- WEAPON (2) ------- Companion Sword > --- INVENTORY (10) --- Advanced Heat Sink Large Storage Unit Transport Network Coupler Improved Light Armor Plating Layered Light Armor Plating Shield Generator Mini Grenade Launcher CPS Tube (2) DRS Beacon (Ready) Peak State ------------ > --- POWER ------------ Improved Ion Engine > --- PROPULSION ------- Improved Hover Unit Improved Hover Unit Improved Hover Unit Improved Hover Unit Improved Hover Unit > --- UTILITY ---------- Medium Storage Unit Visual Processing Unit Experimental Sensor Array Improved Signal Interpreter Advanced Melee Analysis Suite Layered Light Armor Plating System Restoration Module > --- WEAPON ----------- Mini Grenade Launcher Companion Sword > --- INVENTORY -------- Fission Core Advanced Heat Sink Large Storage Unit Transport Network Coupler Improved Light Armor Plating Shield Generator Datajack CPS Tube DRS Beacon [Rating: 50] Favorites ----------- Power Ion Engine Engine Ion Engine Power Core Fission Core Propulsion Light Treads Treads Light Treads Hover Unit Improved Hover Unit Utility Large Storage Unit Device Experimental Sensor Array Storage Large Storage Unit Processor Improved Signal Interpreter Protection Light Armor Plating Weapon Mini Grenade Launcher Energy Gun Medium Laser Energy Cannon Subdweller Beam Cannon Ballistic Gun Light Assault Rifle Ballistic Cannon Battle Cannon Launcher Mini Grenade Launcher Impact Weapon Powered Hammer Slashing Weapon Companion Sword Special Melee Weapon Datajack Build | -11 -10 -10 -9 -9 -6 -6 -6 ------- Run | Yrd Mat Sub Rec Scr Fac Low Zio Slots Evolved 8 | . . . . . 8 . . Power . | . . . . . . . . Propulsion 3 | . . . . . 3 . . Utility 5 | . . . . . 5 . . Weapon . | . . . . . . . . Parts Attached 50 | 6 8 5 . 10 17 1 3 Power 6 | 1 1 . . 1 2 1 . Engine 4 | 1 1 . . . 2 . . Core 2 | . . . . 1 . 1 . Reactor . | . . . . . . . . Propulsion 10 | 2 2 . . 2 4 . . Treads 4 | 2 2 . . . . . . Leg . | . . . . . . . . Wheel . | . . . . . . . . Hover 6 | . . . . 2 4 . . Flight . | . . . . . . . . Utility 20 | 1 3 1 . 3 11 . 1 Device 9 | . 1 1 . 3 4 . . Storage 3 | 1 1 . . . 1 . . Processor 4 | . . . . . 4 . . Hackware . | . . . . . . . . Protection 4 | . 1 . . . 2 . 1 Artifact . | . . . . . . . . Weapon 14 | 2 2 4 . 4 . . 2 Energy Gun 3 | 2 . 1 . . . . . Energy Cannon 1 | . . 1 . . . . . Ballistic Gun 3 | . 2 1 . . . . . Ballistic Cannon 1 | . . 1 . . . . . Launcher 3 | . . . . 2 . . 1 Special Weapon . | . . . . . . . . Impact Weapon 1 | . . . . 1 . . . Slashing Weapon 1 | . . . . 1 . . . Piercing Weapon . | . . . . . . . . Special Melee Weapon 1 | . . . . . . . 1 Unidentified Prototypes 3 | . . 1 . 2 . . . Parts Lost 12 | . . . . . 1 2 9 Power 2 | . . . . . . 1 1 Propulsion 6 | . . . . . 1 1 4 Utility 3 | . . . . . . . 3 Weapon 1 | . . . . . . . 1 Highest Loss Streak 6 | . . . . . 1 2 6 To Critical Strikes . | . . . . . . . . Average Slot Usage (%) 90 | . 97 97 97 86 93 86 57 Engine 7 | . 14 14 14 1 6 1 . Core 5 | . . . . 12 . 4 4 Treads 24 | . 27 28 28 27 . . . Hover 2 | . . . . . 31 27 13 Device 6 | . 2 9 14 6 13 7 3 Storage 13 | . 14 14 14 14 6 6 6 Processor 1 | . . . . . 12 20 16 Protection 3 | . 9 4 . . 8 3 1 Energy Gun 2 | . 8 . . . . . . Energy Cannon 2 | . . 12 12 . . . . Ballistic Gun 5 | . 19 6 . . . . . Ballistic Cannon 1 | . . 5 12 . . . . Launcher 4 | . . . . 10 6 6 1 Impact Weapon 3 | . . . . 8 . . . Slashing Weapon 2 | . . . . 4 6 6 6 Peak Build Rating 50 | 6 8 13 14 30 50 50 43 Average Rating 16 | 4 7 11 13 19 43 45 32 On Entrance 20 | . 6 8 13 10 30 50 43 Naked Turns . | . . . . . . . . Heaviest Build 40 | 11 33 40 37 38 32 30 26 Greatest Support 40 | 40 40 40 40 40 35 35 28 Greatest Overweight (x) 3 | . . . . 2 . 1 3 Average Overweight (x) . | . . . . . . . . Largest Inventory Capacity 15 | 8 15 15 15 15 15 10 10 Average Capacity 14 | 6 14 15 15 15 10 10 10 Most Carried 15 | 3 15 15 15 15 12 9 9 Average Carried 12 | 1 10 14 15 14 9 8 9 Final Capacity 15 | 8 15 15 15 15 10 10 10 Final Carried 15 | 3 14 15 15 13 9 9 9 Class Distribution -------------------- 93% | Mutant Dominant Class ---------------- Mutant | -10/Materials Mutant | -10/Subcaves Mutant | -9/Recycling Mutant | -9/Scraptown Scavenger-Scout | -6/Factory Scout | -6/Lower Caves Mutant | -6/Zion Resources | -11 -10 -10 -9 -9 -6 -6 -6 ----------- Run | Yrd Mat Sub Rec Scr Fac Low Zio Matter Collected 864 | 251 140 161 . 93 185 19 15 Remotely . | . . . . . . . . Salvage Created 886 | . 358 172 . . 293 . 63 Parts 51 | . 30 9 . . 9 . 3 Haulers Intercepted 2 | . . . . . 2 . . Recyclers Shooed . | . . . . . . . . Parts Field Recycled . | . . . . . . . . Retrieved Matter . | . . . . . . . . Parts Self-Destructed 4 | . . 4 . . . . . Prevented . | . . . . . . . . Kills | -11 -10 -10 -9 -9 -6 -6 -6 ------- Run | Yrd Mat Sub Rec Scr Fac Low Zio Combat Hostiles Destroyed 20 | . 13 5 . . 1 . 1 Melee 2 | . . . . . 1 . 1 Guns 17 | . 13 4 . . . . . Cannons 1 | . . 1 . . . . . Classes Destroyed 5 | . 3 1 . . 1 . . Hauler 2 | . . . . . 2 . . Watcher 4 | . 3 . . . 1 . . Swarmer 10 | . 9 1 . . . . . Grunt 5 | . 4 . . . 1 . . Subdweller 4 | . . 4 . . . . . Thug 1 | . . . . . . . 1 Best Kill Streak 8 | . 8 4 . . 1 . 1 Combat Bots Only 8 | . 8 4 . . 1 . 1 Max Kills in Single Turn 2 | . 2 1 . . 1 . 1 Gunslinging 1 | . 1 . . . . . . Exploded . | . . . . . . . . Melee 1 | . . . . . 1 . 1 Uniques/NPCs Destroyed . | . . . . . . . . Combat | -11 -10 -10 -9 -9 -6 -6 -6 -------- Run | Yrd Mat Sub Rec Scr Fac Low Zio Hostile Shots Fired 202 | . 43 34 . . 20 9 96 Missed 53 | . 12 12 . . 7 1 21 Damage Taken 3108 | . 294 440 . . 156 242 1976 Core 936 | . 40 21 . . 14 40 821 Absorbed by Shields 27 | . . . . . 27 . . Regen/Repaired (Parts) 160 | . 160 . . . . . . Core Remaining (%) 87 | 100 . . . 75 . . . Volleys Fired 56 | . 31 25 . . . . . Largest 2 | . 2 2 . . . . . Hottest 119 | . 90 119 . . . . . Shots Fired 110 | . 65 45 . . . . . Gun 95 | . 65 30 . . . . . Cannon 15 | . . 15 . . . . . Launcher . | . . . . . . . . Special . | . . . . . . . . Kinetic 51 | . 21 30 . . . . . Thermal 59 | . 44 15 . . . . . Explosive . | . . . . . . . . Electromagnetic . | . . . . . . . . Robot Hit Streak 18 | . 13 18 . . . . . Robot Miss Streak 3 | . 3 1 . . . . . Penetration Max . | . . . . . . . . Secondary Targets 5 | . 4 1 . . . . . Max Gunslinging Chain 1 | . 1 1 . . . . . Shots Hit Robots 129 | . 41 27 . . 11 1 49 Core Hits 49 | . 23 10 . . 3 . 13 Critical Kills . | . . . . . . . . Critical Parts Destroyed . | . . . . . . . . Critical Strikes 5 | . 3 . . . . . 2 Burn 3 | . 3 . . . . . . Melee Attacks 77 | . . . . . 17 3 57 Impact . | . . . . . . . . Slashing 76 | . . . . . 17 3 56 Piercing . | . . . . . . . . Sneak Attacks 5 | . . . . . 4 . 1 Combat Hostiles 1 | . . . . . 1 . . Follow-up Attacks . | . . . . . . . . Damage Inflicted 3383 | . 454 413 . . 578 34 1904 Guns 734 | . 454 280 . . . . . Cannons 133 | . . 133 . . . . . Explosions . | . . . . . . . . Melee 2516 | . . . . . 578 34 1904 Ramming . | . . . . . . . . Kinetic 368 | . 97 271 . . . . . Thermal 499 | . 357 142 . . . . . Explosive . | . . . . . . . . Electromagnetic . | . . . . . . . . Impact . | . . . . . . . . Slashing 2516 | . . . . . 578 34 1904 Piercing . | . . . . . . . . Highest Corruption 3 | . 3 3 3 . 1 3 3 Average Corruption 2 | . 2 3 3 . 1 2 3 Corruption Purged 2 | . . . . . 1 1 . Corruption Blocked . | . . . . . . . . Effects 42 | . 16 17 8 . . 1 . Message Errors 9 | . 2 6 1 . . . . Matter Fused 12 | . 5 4 2 . . 1 . Heat Flow Errors 5 | . 3 2 . . . . . Energy Discharges 5 | . . 2 3 . . . . Data Loss (minor) 4 | . 3 . 1 . . . . Data Loss (major) 1 | . . . 1 . . . . Misfires 3 | . 3 . . . . . . Alerts 3 | . . 3 . . . . . Overload Shots . | . . . . . . . . Overflow Damage 49 | . . 4 . . 31 . 14 Projectiles 4 | . . 4 . . . . . Explosions . | . . . . . . . . Melee 45 | . . . . . 31 . 14 Knockbacks 1 | . . 1 . . . . . Impact . | . . . . . . . . Kinetic 1 | . . 1 . . . . . Secondary . | . . . . . . . . Self-Inflicted Damage . | . . . . . . . . Shots . | . . . . . . . . Rammed . | . . . . . . . . Targets Rammed . | . . . . . . . . Kicked . | . . . . . . . . Crushed . | . . . . . . . . Highest Temperature 262 | . 262 97 . . 2 . 2 Average Temperature 60 | . 61 55 . . 2 . 2 Received Heat Transfer 614 | . 78 90 . . 32 54 360 Siege Activations . | . . . . . . . . Robots Corrupted . | . . . . . . . . Combat Hostiles . | . . . . . . . . Parts Fried . | . . . . . . . . Impact Corruptions . | . . . . . . . . Robots Melted . | . . . . . . . . Combat Hostiles . | . . . . . . . . Parts Melted 5 | . 5 . . . . . . Heat Transferred 1386 | . 1200 186 . . . . . Parts Sabotaged . | . . . . . . . . Parts Stolen . | . . . . . . . . Parts Stripped . | . . . . . . . . Power Chain Reactions . | . . . . . . . . Alert | -11 -10 -10 -9 -9 -6 -6 -6 ------- Run | Yrd Mat Sub Rec Scr Fac Low Zio Peak Influence 396 | . 339 . 396 . 221 . . Initial 89 | . . . 89 . . . . Average 148 | . 110 . 346 . 101 . . Maximum Alert Level 1 | . 1 . 1 . 1 . . Low Security (%) 66 | 100 79 . 10 . 73 . . Level 1 33 | . 20 . 89 . 26 . . Level 2 . | . . . . . . . . Level 3 . | . . . . . . . . Level 4 . | . . . . . . . . Level 5 . | . . . . . . . . High Security . | . . . . . . . . Max Security . | . . . . . . . . Squads Dispatched 3 | . 1 . . . 2 . . Investigation 2 | . 1 . . . 1 . . Extermination . | . . . . . . . . Reinforcement 1 | . . . . . 1 . . Assault . | . . . . . . . . Garrison . | . . . . . . . . Intercept . | . . . . . . . . Searches Triggered . | . . . . . . . . Construction Impeded . | . . . . . . . . Haulers Reinforced 1 | . . . . . 1 . . Active Scanning Responses . | . . . . . . . . Cargo Convoy Interrupts . | . . . . . . . . Stealth | -11 -10 -10 -9 -9 -6 -6 -6 --------- Run | Yrd Mat Sub Rec Scr Fac Low Zio Distress Signals 2 | . 1 . . . 1 . . Communications Jammed . | . . . . . . . . Distress Signals . | . . . . . . . . Times Spotted 52 | . 18 19 2 . 6 5 2 Peak Tracking Total 6 | . 6 6 1 . 4 5 1 Tactical Retreats 3 | . 1 2 . . . . . Traps | -11 -10 -10 -9 -9 -6 -6 -6 ------- Run | Yrd Mat Sub Rec Scr Fac Low Zio Traps Triggered 3 | . 3 . . . . . . Indirectly . | . . . . . . . . Trap Hack Attempts . | . . . . . . . . Triggered . | . . . . . . . . Disarmed . | . . . . . . . . Reprogrammed . | . . . . . . . . Reused . | . . . . . . . . Traps Extracted . | . . . . . . . . Installed . | . . . . . . . . Triggered . | . . . . . . . . Machines | -11 -10 -10 -9 -9 -6 -6 -6 ---------- Run | Yrd Mat Sub Rec Scr Fac Low Zio Machines Disabled 4 | . . 2 . . 2 . . Max in Single Turn . | . . . . . . . . Garrison Access 1 | . . . . . 1 . . Machines Repaired . | . . . . . . . . Machines Dismantled . | . . . . . . . . Machines Sabotaged . | . . . . . . . . Overloaded Fab Kills . | . . . . . . . . Hacking | -11 -10 -10 -9 -9 -6 -6 -6 --------- Run | Yrd Mat Sub Rec Scr Fac Low Zio Machines Accessed 13 | . 6 1 . 3 3 . . Terminals 7 | . 5 . . . 2 . . Fabricators . | . . . . . . . . Repair Stations 1 | . 1 . . . . . . Recycling Units . | . . . . . . . . Scanalyzers . | . . . . . . . . Garrison Access 1 | . . . . . 1 . . Total Hacks 33 | . 21 4 . 3 5 . . Successful 24 | . 15 4 . 3 2 . . Failed 8 | . 5 . . . 3 . . Catastrophic 3 | . 1 . . . 2 . . Database Lockouts 1 | . 1 . . . . . . Manual 13 | . 11 . . . 2 . . Terminals 21 | . 17 . . . 4 . . Fabricators . | . . . . . . . . Repair Stations 4 | . 4 . . . . . . Recycling Units . | . . . . . . . . Scanalyzers . | . . . . . . . . Garrison Access 1 | . . . . . 1 . . Terminal Hacks 10 | . 3 4 . 3 . . . Record 5 | . . 4 . 1 . . . Robot Analysis 1 | . 1 . . . . . . Prototype ID Bank 1 | . 1 . . . . . . Open Door 1 | . . . . 1 . . . Zone Layout 1 | . 1 . . . . . . Derelict Proto ID Bank 1 | . . . . 1 . . . Fabricator Hacks . | . . . . . . . . Repair Station Hacks 4 | . 4 . . . . . . Scan Component 2 | . 2 . . . . . . Repair 2 | . 2 . . . . . . Recycling Unit Hacks . | . . . . . . . . Scanalyzer . | . . . . . . . . Garrison Access Hacks 1 | . . . . . 1 . . Seal Access 1 | . . . . . 1 . . Unauthorized Hacks 9 | . 8 . . . 1 . . Terminals 9 | . 8 . . . 1 . . Botnet 3 | . 2 . . . 1 . . Operators 1 | . 1 . . . . . . Skim 5 | . 5 . . . . . . Fabricators . | . . . . . . . . Repair Stations . | . . . . . . . . Recycling Units . | . . . . . . . . Scanalyzers . | . . . . . . . . Garrison Access . | . . . . . . . . Data Cores Recovered . | . . . . . . . . Used . | . . . . . . . . Hacking Detections 6 | . 4 . . . 2 . . Full Trace Events 1 | . . . . . 1 . . Feedback Events 1 | . . . . . 1 . . Corruption 1 | . . . . . 1 . . Feedback Blocked . | . . . . . . . . Robot Schematics Acquired . | . . . . . . . . Robots Built . | . . . . . . . . Authchips . | . . . . . . . . Time . | . . . . . . . . Total Robot Build Rating . | . . . . . . . . Part Schematics Acquired . | . . . . . . . . Parts Built . | . . . . . . . . Authchips . | . . . . . . . . Time . | . . . . . . . . Total Part Build Rating . | . . . . . . . . Parts Repaired 2 | . 2 . . . . . . Time 52 | . 52 . . . . . . Parts Recycled . | . . . . . . . . Recycled Matter . | . . . . . . . . Retrieved Matter . | . . . . . . . . Retrieved Components . | . . . . . . . . Parts Scanalyzed . | . . . . . . . . Part Schematics Acquired . | . . . . . . . . Parts Damaged . | . . . . . . . . Bothacking | -11 -10 -10 -9 -9 -6 -6 -6 ------------ Run | Yrd Mat Sub Rec Scr Fac Low Zio Used RIF Installer . | . . . . . . . . Robots Hacked 1 | . . . . . . . 1 Non-combat . | . . . . . . . . Combat 1 | . . . . . . . 1 Robot Hacks Applied 1 | . . . . . . . 1 parse_system 1 | . . . . . . . 1 Relay Couplers Released . | . . . . . . . . Fabnet Peak Effective % . | . . . . . . . . Robots Rewired . | . . . . . . . . Allies Hacked . | . . . . . . . . Hacks Repelled . | . . . . . . . . Allies | -11 -10 -10 -9 -9 -6 -6 -6 -------- Run | Yrd Mat Sub Rec Scr Fac Low Zio Total Allies 7 | . . 7 . . . . . Largest Group 6 | . . 6 6 4 4 1 . Highest-Rated Group 114 | . . 114 114 76 76 17 . Highest-Rated Ally 19 | . . 19 19 19 19 17 . Total Orders . | . . . . . . . . Ally Attacks 139 | . . 27 55 . 55 2 . Total Damage 1973 | . . 352 818 . 762 41 . Kills 24 | . . 5 14 . 5 . . Allies Corrupted . | . . . . . . . . Allies Melted . | . . . . . . . . Intel | -11 -10 -10 -9 -9 -6 -6 -6 ------- Run | Yrd Mat Sub Rec Scr Fac Low Zio Robot Analysis Total 1 | . 1 . . . . . . Derelict Logs Recovered 2 | . . . . 2 . . . Drone Launches . | . . . . . . . . Drone Recoveries . | . . . . . . . . Exploration | -11 -10 -10 -9 -9 -6 -6 -6 ------------- Run | Yrd Mat Sub Rec Scr Fac Low Zio Turns Passed 6131 | 85 1509 955 425 2516 286 49 306 Spaces Moved 3649 | 47 576 542 247 1553 377 66 241 Core 1 | 1 . . . . . . . Treads 2963 | 46 576 542 247 1552 . . . Legs . | . . . . . . . . Wheels . | . . . . . . . . Hover 685 | . . . . 1 377 66 241 Flight . | . . . . . . . . Fastest Speed 44 | 50 160 160 160 160 44 44 48 Average Speed 139 | 157 160 160 160 160 45 57 54 Slowest Speed 240 | 160 160 160 160 176 48 108 240 Overloaded Moves . | . . . . . . . . Propulsion Burnouts . | . . . . . . . . Robots Hopped . | . . . . . . . . Cave-ins Triggered . | . . . . . . . . Exploration Rate (%) 42 | 5 90 42 66 91 11 17 15 Regions Visited 7 Branch Regions 5 Pre-discovered Areas 4 | . 2 1 . 1 . . . Known Exits Taken 3 | . 1 . . . 1 1 . Unknown Exits Taken 4 | 1 . 1 1 1 . . . Scrap Searched 5 | . . . . 4 . 1 . Spaces Dug . | . . . . . . . . Terrain Destroyed . | . . . . . . . . Melee . | . . . . . . . . Projectile . | . . . . . . . . AOE . | . . . . . . . . Terrain Rammed . | . . . . . . . . Walls Destroyed . | . . . . . . . . Machines Disabled . | . . . . . . . . Actions | -11 -10 -10 -9 -9 -6 -6 -6 --------- Run | Yrd Mat Sub Rec Scr Fac Low Zio Total 4487 | 55 1109 587 280 1587 466 72 331 Wait 577 | . 460 5 28 7 46 2 29 Move 3642 | 46 575 541 246 1552 376 65 241 Hop . | . . . . . . . . Pick Up 37 | 3 20 3 1 7 3 . . Fast Attach 32 | 6 7 5 . 6 6 . 2 Attach 13 | . 1 . . 4 7 1 . Detach 7 | . 2 1 1 . 2 1 . Swap 5 | . . . . . 4 . 1 Drop 40 | . 13 7 3 11 5 . 1 Fire 56 | . 31 25 . . . . . Melee 77 | . . . . . 17 3 57 Ram . | . . . . . . . . Kick . | . . . . . . . . Crush . | . . . . . . . . Escape Stasis . | . . . . . . . . Rewire 1 | . . . 1 . . . . Trap . | . . . . . . . . Miscellaneous . | . . . . . . . . Route ------- -11/Scrapyard -10/Materials (discovered 5 exits: [*Mat x3] / [*Min] / *Sub) -10/Subcaves (discovered 3 exits: *Mat x2 / [*Rec]) -9/Recycling (discovered 2 exits: [*Fac] / *Scr) -9/Scraptown (discovered 2 exits: *Fac x2) -6/Factory -6/Lower Caves -6/Zion (discovered 1 exit: *Pro) History --------- Turn | Location | Event 2 | -11/Scrapyard | Met Revision 17 19 | -11/Scrapyard | Discovered new exit (range 16) 86 | -11/Scrapyard | Entered Materials 205 | -10/Materials | Destroyed 8 combat bots 318 | -10/Materials | Discovered new exit (range 16) 329 | -10/Materials | Build established: Mutant 572 | -10/Materials | Discovered new exit (range 13) 755 | -10/Materials | Repaired Lgt. Treads 782 | -10/Materials | Repaired Lgt. Treads 860 | -10/Materials | Discovered new exit (range 16) 893 | -10/Materials | Central database locked down 1043 | -10/Materials | Discovered new exit (range 12) 1209 | -10/Materials | Identified exit to Subcaves 1265 | -10/Materials | Learned location of Subcaves (-10) 1309 | -10/Materials | Learned Storage security intel 1343 | -10/Materials | Learned Storage stockpile data 1595 | -10/Materials | Entered Subcaves 1596 | -10/Subcaves | Identified exit to Materials 1621 | -10/Subcaves | Ambushed by Subdwellers from Twisted Machinery 1726 | -10/Subcaves | Shifting Twisted Machinery released Battle Rifle 1883 | -10/Subcaves | Visited triangular shrine 1893 | -10/Subcaves | Found Prototype Device 1893 | -10/Subcaves | Identified V3-11A's Pendant 1898 | -10/Subcaves | Befriended Subdweller 2045 | -10/Subcaves | Visited Clippyterm 2049 | -10/Subcaves | Learned location of Extension (-6) 2104 | -10/Subcaves | A swath of the cavern ceiling suddenly collapsed 2385 | -10/Subcaves | Ambushed by Subdwellers from Twisted Machinery 2388 | -10/Subcaves | Befriended Subdweller 2388 | -10/Subcaves | Befriended Subdweller 2478 | -10/Subcaves | Befriended Subdweller 2478 | -10/Subcaves | Befriended Subdweller 2502 | -10/Subcaves | A Subdweller sparked back to life 2503 | -10/Subcaves | Befriended Subdweller 2508 | -10/Subcaves | Befriended Subdweller 2512 | -10/Subcaves | Found Prototype Device 2515 | -10/Subcaves | Discovered new exit (range 12) 2550 | -10/Subcaves | Entered Recycling 2550 | -9/Recycling | Accompanied by 6 allies 2891 | -9/Recycling | Discovered new exit (range 16) 2928 | -9/Recycling | Scanned before Scraplab entrance 2951 | -9/Recycling | Entered Scraplab 2964 | -9/Recycling | Discovered new exit (range 3) 2975 | -9/Recycling | Entered Scraptown 2975 | -9/Scraptown | Accompanied by 4 allies 2975 | -9/Scraptown | System corruption cleaned by C-Scrubber 3048 | -9/Scraptown | Delivered V3-11A's Pendant to T0-NE2 in exchange for information 3322 | -9/Scraptown | Visited UFD Registry 3322 | -9/Scraptown | Registered with UFD as "Softslasher" 3345 | -9/Scraptown | Visited Scrapoid Research Area 3364 | -9/Scraptown | Visited Cave Peace 3383 | -9/Scraptown | Visited Observation Area 3444 | -9/Scraptown | Scanned Subdweller tech in exchange for log data 3449 | -9/Scraptown | Learned location of Warlord (-5) 3458 | -9/Scraptown | Learned location of 1 exit from Proximity Caves 3511 | -9/Scraptown | Discovered new exit (range 13) 3676 | -9/Scraptown | Identified Power Bank 3677 | -9/Scraptown | Attached Power Bank, gained temporary slots: Power x3 3819 | -9/Scraptown | Guru changed UFD alias to "Shockbrain" 4035 | -9/Scraptown | Visited Cyclists 4048 | -9/Scraptown | Entered Cyclist Reading Room 4080 | -9/Scraptown | Visited Fellowship of the Rings 4137 | -9/Scraptown | Visited Red Mages 4277 | -9/Scraptown | Visited Research Penetration Think Tank 4313 | -9/Scraptown | Visited DA-N13 Charitable Foundation 4320 | -9/Scraptown | Found DCF Scrap (32 items) 4375 | -9/Scraptown | Visited Infowarlord's Domain 4390 | -9/Scraptown | Found Exp. Sensor Array 4420 | -9/Scraptown | Visited Science Guys 4534 | -9/Scraptown | Visited Scrap Suit Storage 4569 | -9/Scraptown | Visited Botcube Research 4604 | -9/Scraptown | Visited Chapter 10 4630 | -9/Scraptown | Visited Derelict Rescue Squad 4639 | -9/Scraptown | Found DRS Beacon 4672 | -9/Scraptown | Visited Sword Containment 5477 | -9/Scraptown | Discovered new exit (range 3) 5491 | -9/Scraptown | Entered Factory 5491 | -6/Factory | Accompanied by 4 allies 5491 | -6/Factory | Evolved 8 slots: Propulsion x3, Utility x5 5757 | -6/Factory | Discovered new exit (range 8) 5760 | -6/Factory | Identified exit to Lower Caves 5777 | -6/Factory | Entered Lower Caves 5777 | -6/Lower Caves | Accompanied by 1 ally 5801 | -6/Lower Caves | Attacked by a faux Warlord 5823 | -6/Lower Caves | A Derelict revealed a hidden shortcut to a safe place 5825 | -6/Lower Caves | Identified exit to Zion 5826 | -6/Lower Caves | Entered Zion 5847 | -6/Zion | System corruption cleaned by Quarantine Array 5888 | -6/Zion | Given A8's code to call for help 5929 | -6/Zion | Discovered new exit (range 11) 5941 | -6/Zion | Attacked by Zionites 5964 | -6/Zion | Identified exit to Proximity Caves 5991 | -6/Zion | 7V-RTL came to Zion's defense 6020 | -6/Zion | Found Adv. Powered Armor 6055 | -6/Zion | Lost 6 parts (3n2u1w) 6091 | -6/Zion | Core integrity fell below 50% 6115 | -6/Zion | Core integrity fell below 20% 6132 | -6/Zion | Destroyed by 7V-RTL with Dispersion Rifle Last Messages --------------- Critical hit (Destroy). Penetrated by Slug. Slug penetrates Wall. Critical hit (Destroy). Slug penetrates Earth. Penetrated by Slug. Slug penetrates Wall. Penetrated by Slug. Slug penetrates Wall. Fission Core destroyed. Slug penetrates Wall. Penetrated by Slug. Adv. Powered Armor destroyed. Penetrated by Slug. Slug penetrates Wall. Penetrated by Slug. Slug penetrates Wall. Penetrated by Slug. Companion Sword: "Press the attack!" Slug penetrates Wall. Map ----- +----------------------------------------------------+ | ???????????????????????????????????????????????? | | ???????????????????????????????????????????????? | | ???????????????????????????????????????????????? | | ???????????????????????????????????????????????? | | ???????????????????????????????????????????????? | | ???????????????????????????????????????????????? | | ???????????????????????????????????????????????? | | ???????????????????????????????????????????????? | | ???????????????????????????????????????????????? | | ???????????????????????????????????????????????? | | ???????????????????????????????????????????????? | | ???????????????????????????????????????????????? | | ???????????????????????????????????????????????? | | ???????????????????????????????????????????????? | | ???????????????????????????????????????????????? | | ???????????????????????????????????????????????? | | ???????????????????????????????????????????????? | | ???????????????????????????????????????????????? | | ???????????????????????????????????????????????? | | ???????????????????????????????????????????????? | | ???????????????????????????????????????????????? | | ???????????????????????????????????????????????? | | ???????????????????????????????????????????????? | | ???????????????????????####????????????????????? | | ????????????????######## ##???????????????????? | | ????????????????# ;; @Y#???????????????????? | | ????????????????##### > ##??????????????????? | | ????????????????????# #??????????????????? | | ????????????????????#; #??????????????????? | | ????????????#######?#; #??????????????????? | | ????????????#["["[## ; ##??????????????????? | | ????????????#[ /## ## ##???????????????????? | | ????????????#[" "/# #?# ##????????????????????? | | ????????#####"" "";#??# #??##?##??????????????? | | ???????## ## !%;##### ### ###"##????????????? | | ???????# # ==# #"""##???????????? | | ???????# ## ##" " #???????????? | | ???????##### ## #???????????? | | ?????????## ### #???????????? | | ?????????# ## ###?# #???????????? | | ?????????# ## ### ##???# ##??????????? | | ?????????## #?# #????# #??????????? | | ??????????#### ### ##???# #??????????? | | ???????????#### ###?### #??????????? | | #######???## ### #???# #??????????? | | """"""#???# ### ##???## #??????????? | | """"""#???# ## ####?????# #??????????? | | ##### #### ####?????# #??????????? | | ###??### ##????# #??????????? | | ##??##### ##???# #??????????? | +----------------------------------------------------+ Best States ------------- Heat Dissipation 37 Energy Generation 18 Energy Capacity 310 Matter Stores 300 Matter Capacity 300 Sight Range 18 Robot Scan Range 20 Terrain Scan Density 10 Armor Coverage 400 Evasion (%) 56 Melee Accuracy 8 Recoil Reduction 2 Item Schematics ----------------- None Robot Schematics ------------------ None Fabricated ------------ Nothing Alien Tech Used ----------------- None Achievements -------------- None Challenges ------------ None Game ------ Seed AbsorptionNeutronDrivehammer Manual? 0 Play Time 00:37:07 Cumulative 557.2 hours Start 2024.08.10 @ 20:44:37 End 2024.08.10 @ 23:14:51 Sessions 5 Manual Loads 0 Difficulty Rogue Special Mode None Game No. 315 Rogue 315 Adventurer 0 Explorer 0 Win Type - Total 36 Types 22/2/4/3/1/1/1/1/1 Lore% 96 Gallery% 97 Achievement% 98 Wizard Run 0 Options --------- Layout 1 ASCII 0 Keyboard 0 Movement Numpad Keybinds 0 Fullscreen 1 Font 24/Smallcaps Map View 50x35 Zoom Use 0% Tactical HUD 1 Map Filters NONE Filters NONE Steam 1 RUN: ca29009e-395d-46bb-88d2-406afbc1add2